[Event "CEZ Chess Trophy 2022"]
[Site "Prague"]
[Date "2022.06.01"]
[Round "5.1"]
[White "Navara, David"]
[Black "Narayanan.S.L"]
[Result "1/2-1/2"]
[ECO "D38"]
[WhiteElo "2682"]
[BlackElo "2662"]
[Annotator "TA"]
[PlyCount "91"]
[EventDate "2022.05.31"]
[EventType "match"]
[EventCountry "CZE"]
[SourceTitle "playchess.com"]
[Source "ChessBase"]
[SourceQuality "1"]
[TimeControl "900+10"]

{[%evp 9,91,27,27,1,34,29,17,43,40,14,10,10,11,16,12,10,3,8,26,0,0,-20,6,0,0,0,0,0,0,0,10,0,0,0,0,0,0,0,0,0,0,0,0,0,0,0,0,0,0,0,0,0,0,-14,0,0,0,0,0,0,0,0,0,0,17,17,17,0,0,0,17,-76,-64,-72,0,0,0,0,0,0,0,0,0,0]} 1. d4 {[%emt 0:00:02]} Nf6 {[%emt 0:00:04]} 2. c4 {[%emt 0:00:03]} e6 {[%emt 0:00:01]} 3. Nf3 {[%emt 0:00:01]} d5 {[%emt 0:00:06]} 4. Nc3 {[%emt 0:00:02]} Bb4 {[%emt 0:00:03]} 5. cxd5 {[%emt 0:01:25]} exd5 {[%emt 0:00:02]} 6. Bf4 {[%emt 0:00:02] D38: Queen's Gambit Declined: Ragozin Defence (4 Nf3 Bb4).} O-O {[%emt 0:00:07]} 7. e3 {[%emt 0:00:03]} Bf5 {[%emt 0:00:02]} 8. Qb3 {[%emt 0:00:11]} Nc6 {[%emt 0:00:01]} 9. Nh4 {[%emt 0:00:03]} Be6 {[%emt 0:00:02]} 10. Bd3 {[%emt 0:00:31]} Ne4 {[%emt 0:00:49]} 11. Nf3 {[%emt 0:00:17]} Bf5 {[%emt 0:00:02] [#]} 12. Rd1 $146 {[%emt 0:04:45]} ({Predecessor:} 12. Qc2 Re8 13. O-O Bg6 14. Ne2 Bd6 15. a3 a5 16. Rfc1 Bh5 17. Bg3 Nxg3 18. hxg3 {½-½ (36) Nakamura,H (2736)-Aronian,L (2781) chess24.com INT 2020}) 12... Bxc3+ {[%emt 0:01:35]} 13. bxc3 {[%emt 0:00:02]} Na5 {[%emt 0:00:02] Pair of Knights!} 14. Qb4 {[%emt 0:01:46]} c6 {[%emt 0:02:31]} 15. a4 {[%emt 0:03:46]} a6 {[%emt 0:00:45]} 16. Ra1 {[%emt 0:00:57]} b5 {[%emt 0:01:02]} (16... Nxf2 17. Bxf5 Nxh1 18. Ke2 $16) 17. axb5 {[%emt 0:00:02]} axb5 {[%emt 0:00:02][%cal Oe4f2]} 18. O-O {[%emt 0:00:03]} Nc4 {[%emt 0:00:39]} 19. Ne5 {[%emt 0:00:45]} Nxe5 {[%emt 0:00:42]} 20. Bxe5 {[%emt 0:00:02]} Qd7 {[%emt 0:01:35]} 21. Bxe4 {[%emt 0:01:14]} Bxe4 {[%emt 0:00:36]} 22. f3 {[%emt 0:00:18]} Bd3 {[%emt 0:00:11]} 23. Rfd1 {[%emt 0:00:02]} Bc2 {[%emt 0:01:09]} 24. Rdc1 {[%emt 0:00:09] [#] Threatens to win with Rxa8.} Rxa1 {[%emt 0:00:16]} 25. Rxa1 {[%emt 0:00:01]} Ba4 {[%emt 0:00:05]} 26. Qd6 {[%emt 0:00:27]} Qxd6 {[%emt 0:00:04]} 27. Bxd6 $11 {[%emt 0:00:02][%mdl 4096] Endgame KRB-KRB} Re8 {[%emt 0:00:02]} 28. Kf2 {[%emt 0:00:03]} f6 {[%emt 0:00:33]} 29. g4 {[%emt 0:00:17]} Kf7 {[%emt 0:00:02]} 30. h4 {[%emt 0:00:41]} h5 {[%emt 0:00:03]} 31. g5 {[%emt 0:00:16]} Rd8 {[%emt 0:01:31]} 32. Bf4 {[%emt 0:00:38]} Rc8 {[%emt 0:00:17]} 33. e4 {[%emt 0:01:13]} dxe4 {[%emt 0:00:07]} 34. fxe4 {[%emt 0:00:02]} Re8 {[%emt 0:00:06]} 35. Ke3 {[%emt 0:00:15]} Bc2 {[%emt 0:00:51]} 36. Ra7+ {[%emt 0:00:03]} Re7 {[%emt 0:00:16]} 37. g6+ {[%emt 0:00:02]} Ke8 {[%emt 0:00:01]} 38. Ra8+ {[%emt 0:00:43]} Kd7 {[%emt 0:00:01]} 39. Ra7+ {[%emt 0:00:02]} Ke8 {[%emt 0:00:01]} 40. Ra2 {[%emt 0:00:19]} (40. Rxe7+ $11 Kxe7 41. Bc7) 40... Rxe4+ $17 {[%emt 0:01:28]} 41. Kf3 {[%emt 0:00:01] [#]} Bd3 {[%emt 0:00:23]} (41... Bb1 $1 $17 {aiming for ...Rxf4+.} 42. Ra1 (42. Ra8+ Kd7 $17) 42... Bd3) 42. Rd2 $1 $11 {[%emt 0:00:18] The position is equal.} ({Much weaker is} 42. Ra8+ Kd7 43. Bh6 (43. Ra7+ Ke6 $17) 43... Rg4 44. Bxg7 Rxg6 $17) 42... Bb1 {[%emt 0:00:02]} 43. Rd1 $1 {[%emt 0:00:06]} Bc2 {[%emt 0:00:02]} 44. Rd2 {[%emt 0:00:15]} Bb1 {[%emt 0:00:01]} 45. Rd1 {[%emt 0:00:11] Inhibits Re1.} Bc2 {[%emt 0:00:02] Hoping for ...Rxf4+.} 46. Rd2 {[%emt 0:00:02] Weighted Error Value: White=0.08 (flawless) /Black=0.05 (flawless)} 1/2-1/2

[Event "CEZ Chess Trophy 2022"]
[Site "Prague"]
[Date "2022.06.01"]
[Round "6.1"]
[White "Narayanan.S.L"]
[Black "Navara, David"]
[Result "1-0"]
[ECO "E52"]
[WhiteElo "2662"]
[BlackElo "2682"]
[Annotator "TA"]
[PlyCount "53"]
[EventDate "2022.05.31"]
[EventType "match"]
[EventCountry "CZE"]
[SourceTitle "playchess.com"]
[Source "ChessBase"]
[SourceQuality "1"]
[TimeControl "900+10"]

{[%evp 17,53,0,0,0,0,-8,-21,-29,-13,-30,0,0,0,13,7,10,21,14,121,114,108,90,117,124,231,130,116,113,455,154,543,535,1052,1058,29996,29997,29998,29999]} 1. Nf3 {[%emt 0:00:03]} d5 {[%emt 0:00:02]} 2. d4 {[%emt 0:00:02]} Nf6 {[%emt 0:00:01]} 3. c4 {[%emt 0:00:01]} e6 {[%emt 0:00:02]} 4. Nc3 {[%emt 0:00:02]} Bb4 {[%emt 0:00:04]} 5. e3 {[%emt 0:00:04]} O-O {[%emt 0:00:14]} 6. Bd2 {[%emt 0:00:02]} b6 {[%emt 0:00:13]} 7. cxd5 {[%emt 0:00:03]} exd5 {[%emt 0:00:02]} 8. Bd3 {[%emt 0:00:04]} Bd6 {[%emt 0:00:15]} 9. O-O {[%emt 0:01:01]} Bb7 {[%emt 0:00:02]} 10. Ne5 {[%emt 0:00:43] E52: Nimzo-Indian: Rubinstein: 4...0-0 5 Nf3 d5 6 Bd3 b6.} c5 {[%emt 0:00:05]} 11. f4 {[%emt 0:00:04]} Nc6 {[%emt 0:00:15]} 12. Ne2 {[%emt 0:00:17] The position is equal.} Ne4 {[%emt 0:02:55]} 13. Ng3 {[%emt 0:01:43]} Ne7 {[%emt 0:02:33]} 14. Bc3 {[%emt 0:01:16]} Nxc3 {[%emt 0:02:19]} 15. bxc3 {[%emt 0:00:02] [#]} c4 $146 {[%emt 0:00:20]} ({Predecessor:} 15... Qc8 16. Rc1 c4 17. Bc2 f5 18. a4 Bc6 19. Rb1 Bd7 20. Qf3 Be6 21. Ne2 Rb8 {0-1 (38) Maletin,P (2588)-Riazantsev,A (2692) Vladivostok 2014}) 16. Bc2 {[%emt 0:00:47]} g6 {[%emt 0:00:36] Prevents Qh5.} 17. f5 {[%emt 0:01:28][%cal Bf4f5,Bf5f6][%mdl 32]} Nc6 {[%emt 0:04:38]} (17... f6 $2 18. fxg6 $1 Bxe5 19. g7 Kxg7 20. Qh5 $18) (17... Bxe5 $11 {keeps the balance.} 18. dxe5 Qc7) 18. Nxc6 $1 $16 {[%emt 0:00:34] White is more active.} ({But not} 18. fxg6 $6 fxg6 19. Rxf8+ Bxf8 20. Nxc6 Bxc6 $15) 18... Bxc6 {[%emt 0:00:02] [#]} 19. Qg4 {[%emt 0:00:04][%cal Rf5g6] Inhibits Qh4.} Kh8 {[%emt 0:00:26]} 20. f6 {[%emt 0:01:49]} Qd7 {[%emt 0:01:41]} (20... Rg8 $16) 21. Qg5 {[%emt 0:01:22]} ({White should try} 21. Qh4 $18) 21... Rg8 {[%emt 0:00:32]} 22. Rf3 {[%emt 0:00:24][%cal Og3f5] Black must now prevent Nf5!} Rae8 $2 {[%emt 0:01:06][%mdl 8192] [#]} (22... Bf8 $16 {is a better chance.}) 23. Raf1 $2 {[%emt 0:00:43]} (23. Nf5 $1 $18 {[%cal Of3h3][%mdl 512] is more deadly. White threatens Rh3! and mate.} Bxh2+ 24. Kh1 (24. Kxh2 gxf5 25. Qh5 Qd6+ 26. Kg1 Qxf6 $16) 24... gxf5 25. Qh5) 23... Re6 $2 {[%emt 0:00:21] This move loses the game for Black.} (23... Bf8 $16) 24. Ne2 $18 {[%emt 0:00:26] Threatens to win with Rh3.} Qe8 {[%emt 0:00:12]} 25. Rh3 {[%emt 0:00:07][%cal Oh3h7] White wants to mate with Rxh7+!} Bf8 {[%emt 0:00:06]} 26. Qh4 {[%emt 0:00:03][%csl Gh3][%cal Rh4h7]} h6 {[%emt 0:00:14] [#]} 27. Qxh6+ $3 {[%emt 0:00:02][%mdl 512] Weighted Error Value: White=0.23 (precise) /Black=1.02} 1-0

[Event "CEZ Chess Trophy 2022"]
[Site "Prague"]
[Date "2022.06.02"]
[Round "7.1"]
[White "Navara, David"]
[Black "Narayanan.S.L"]
[Result "1-0"]
[ECO "C50"]
[WhiteElo "2682"]
[BlackElo "2662"]
[Annotator "TA"]
[PlyCount "85"]
[EventDate "2022.05.31"]
[EventType "match"]
[EventCountry "CZE"]
[SourceTitle "playchess.com"]
[Source "ChessBase"]
[SourceQuality "1"]
[TimeControl "900+10"]

{[%evp 9,84,8,10,8,15,0,8,0,16,20,21,0,8,6,10,9,20,0,8,9,23,0,0,0,0,-33,-21,-20,14,0,0,9,14,0,0,0,71,92,131,124,154,137,215,217,194,169,214,217,201,177,172,163,163,150,445,474,478,462,479,485,410,349,669,626,29982,29983,29983,29984,29984,29985,29996,29997,29997,29998,29998,29999,29999]} 1. e4 {[%emt 0:00:01]} e5 {[%emt 0:00:01]} 2. Nf3 {[%emt 0:00:02]} Nc6 {[%emt 0:00:02]} 3. Bc4 {[%emt 0:00:02]} Bc5 {[%emt 0:00:01]} 4. O-O {[%emt 0:00:03]} Nf6 {[%emt 0:00:02]} 5. d3 {[%emt 0:00:02]} O-O {[%emt 0:00:02]} 6. Re1 {[%emt 0:00:01] C50: Hungarian Defence and Giuoco Pianissimo.} Ng4 {[%emt 0:00:49] outshines the older 6...d6.} 7. Re2 {[%emt 0:00:03]} Kh8 {[%emt 0:00:01]} 8. h3 {[%emt 0:00:31] The position is equal.} f5 {[%emt 0:00:02][%cal Of5e4] And now ...fxe4! would win.} 9. Bg5 {[%emt 0:00:02]} (9. hxg4 fxg4 10. Ng5 Qf6 $17) 9... Nf6 {[%emt 0:00:15]} 10. Nc3 {[%emt 0:00:02]} d6 {[%emt 0:00:03]} 11. Nd5 {[%emt 0:00:04]} fxe4 {[%emt 0:00:02]} 12. dxe4 {[%emt 0:00:08]} Be6 {[%emt 0:00:03]} 13. Nxf6 {[%emt 0:03:11]} (13. Bxf6 {seems wilder.} Rxf6 14. Nxf6 Bxc4 15. Nd5) 13... gxf6 {[%emt 0:00:01]} 14. Bxe6 {[%emt 0:00:02]} fxg5 {[%emt 0:00:02] [#]} 15. Bf5 $5 $146 {[%emt 0:00:02][%mdl 8] An interesting novelty.} ({Predecessor:} 15. Bg4 Qf6 16. c3 Qg6 17. b4 Bb6 18. Bf5 Qg7 19. Qd2 Ne7 20. Bg4 h6 21. g3 {0-1 (43) So,W (2772)-Nihal,S (2650) Chess.com INT 2021}) 15... Qf6 {[%emt 0:00:15]} 16. Qd2 {[%emt 0:00:34]} Rg8 {[%emt 0:02:26]} 17. g4 {[%emt 0:02:19]} Ne7 {[%emt 0:00:48][%cal Bc6e7,Be7g6,Bg6f4][%mdl 32]} 18. Kg2 {[%emt 0:01:19]} Raf8 {[%emt 0:01:15]} 19. Rh1 {[%emt 0:00:13]} Ng6 {[%emt 0:01:35]} (19... Nxf5 20. exf5 Ra8 21. a4 $16) 20. Ree1 {[%emt 0:02:15]} Nf4+ {[%emt 0:00:38]} 21. Kg3 {[%emt 0:00:05]} h5 {[%emt 0:01:44]} 22. h4 {[%emt 0:00:20]} gxh4+ {[%emt 0:00:18]} (22... d5 $11 23. hxg5 Rxg5 24. Nxg5 Qxg5) 23. Rxh4 $16 {[%emt 0:00:03]} Kg7 {[%emt 0:00:26]} 24. Reh1 {[%emt 0:01:07] Black must now prevent b4.} Rh8 {[%emt 0:05:11]} 25. g5 {[%emt 0:02:08]} Qf7 {[%emt 0:00:24]} (25... Qe7 $16) 26. b4 {[%emt 0:00:08] The board is on fire.} Bb6 {[%emt 0:00:03]} 27. a4 $36 {[%emt 0:00:15][%cal Ba2a4,Ba4a5][%mdl 2080] a5 is the strong threat. Black is under strong pressure.} a6 {[%emt 0:00:03]} 28. a5 {[%emt 0:01:14]} (28. Rxf4 $6 exf4+ 29. Kg2 Qc4 $16) 28... Ba7 {[%emt 0:00:01]} 29. Rxf4 {[%emt 0:00:25]} exf4+ {[%emt 0:00:01] [#]} 30. Kg2 $1 {[%emt 0:00:30]} (30. Qxf4 $6 Qc4 $16) 30... Qc4 {[%emt 0:00:05][%cal Oh5h4] Against Qc3+} 31. Rh4 {[%emt 0:00:21]} Re8 $2 {[%emt 0:02:34] Loses the game.} (31... Rf7 $16 32. Kg1 (32. Rxf4 h4 $16) 32... Re8) 32. Rxf4 $18 {[%emt 0:00:20][%cal Oe4e5] Hoping for e5!} Rhf8 {[%emt 0:00:01] [#]} 33. Nh4 $1 {[%emt 0:00:50]} ({Less strong is} 33. Rh4 d5 34. e5 (34. Rxh5 $2 Rxf5 35. Nd4 Bxd4 $19) 34... Qb5 $14) 33... Bd4 {[%emt 0:00:32]} (33... Kg8 $2 34. Qd1 Qd4 35. Qxh5) 34. Qd1 {[%emt 0:00:04]} Rh8 {[%emt 0:00:01]} 35. Bd7 {[%emt 0:00:26]} Be5 $2 {[%emt 0:00:17]} (35... Ref8 36. Rxf8 Rxf8) 36. Nf5+ {[%emt 0:00:16]} Kg6 {[%emt 0:00:39]} 37. Bxe8+ {[%emt 0:00:32] White mates.} Rxe8 {[%emt 0:00:01]} 38. Nh4+ {[%emt 0:00:44]} Kg7 {[%emt 0:00:21]} 39. Qxh5 {[%emt 0:00:03]} Bxf4 {[%emt 0:00:18]} 40. Nf5+ {[%emt 0:00:03]} Kf8 {[%emt 0:00:06]} 41. Qh8+ {[%emt 0:00:03]} Kf7 {[%emt 0:00:01]} 42. Qf6+ {[%emt 0:00:03]} Kg8 {[%emt 0:00:02]} 43. Qg7# {[%emt 0:00:01] Weighted Error Value: White=0.06 (flawless) /Black=0.45} 1-0

[Event "CEZ Chess Trophy 2022"]
[Site "Prague"]
[Date "2022.06.02"]
[Round "8.1"]
[White "Narayanan.S.L"]
[Black "Navara, David"]
[Result "0-1"]
[ECO "D38"]
[WhiteElo "2662"]
[BlackElo "2682"]
[Annotator "TA"]
[PlyCount "146"]
[EventDate "2022.05.31"]
[EventType "match"]
[EventCountry "CZE"]
[SourceTitle "playchess.com"]
[Source "ChessBase"]
[SourceQuality "1"]
[TimeControl "900+10"]

{[%evp 11,146,16,12,11,9,8,10,2,14,5,10,14,6,4,37,33,36,16,11,0,-11,-5,0,-16,-8,-35,-29,-33,-30,-35,-31,-49,-4,0,-19,-15,0,0,0,0,0,0,0,0,0,0,0,0,0,0,0,0,0,0,0,-7,0,0,0,0,8,0,0,-7,-6,-4,0,0,27,32,45,45,45,37,45,37,37,38,41,29,33,14,17,23,36,12,60,0,0,0,0,-8,-8,-40,-41,-41,-37,-37,-36,-39,-39,-39,-39,-39,-39,-92,-29,-29,-30,-57,-30,-37,-29,-48,-25,-25,-25,-91,-91,-91,-91,-91,-91,-91,-91,-132,-132,-132,-132,-132,-83,-685,-632,-962,-567,-426,-362]} 1. Nf3 {[%emt 0:00:03]} d5 {[%emt 0:00:05]} 2. d4 {[%emt 0:00:01]} Nf6 {[%emt 0:00:02]} 3. c4 {[%emt 0:00:01]} e6 {[%emt 0:00:02]} 4. Nc3 {[%emt 0:00:01]} Bb4 {[%emt 0:00:02]} 5. Qa4+ {[%emt 0:00:01]} Nc6 {[%emt 0:00:02]} 6. e3 {[%emt 0:00:01]} O-O {[%emt 0:00:03]} 7. Qc2 {[%emt 0:00:01] D38: Queen's Gambit Declined: Ragozin Defence (4 Nf3 Bb4).} Re8 {[%emt 0:00:15]} 8. Bd2 {[%emt 0:00:02]} Bf8 {[%emt 0:00:20] The main line 8...Bf8 scores better than 8...a6.} 9. Be2 {[%emt 0:00:02] The position is equal.} Nb4 {[%emt 0:00:18]} 10. Qb1 {[%emt 0:00:01]} c5 {[%emt 0:00:55]} 11. dxc5 {[%emt 0:00:22]} dxc4 {[%emt 0:00:49]} 12. Bxc4 {[%emt 0:00:11] [#]} Qc7 $146 {[%emt 0:00:39]} ({Predecessor:} 12... Bxc5 13. O-O b6 14. a3 Nc6 15. Ne4 Nxe4 16. Qxe4 Bb7 17. Bc3 Bf8 18. Rfd1 Qe7 {½-½ (37) Gukesh,D (2614)-Narayanan,S (2553) Dhaka 2022}) 13. O-O {[%emt 0:01:53]} Qxc5 {[%emt 0:00:08]} 14. Bb5 {[%emt 0:00:20]} Bd7 {[%emt 0:02:44]} 15. Bxd7 {[%emt 0:00:19]} Nxd7 {[%emt 0:00:03][%cal Bf6d7,Bd7c5,Bc5e4][%mdl 32]} 16. Ne4 {[%emt 0:00:06]} Qf5 {[%emt 0:01:07]} 17. Nd4 {[%emt 0:01:16]} Qg6 {[%emt 0:00:02]} 18. Nb5 {[%emt 0:00:48]} Red8 {[%emt 0:00:19]} 19. a3 {[%emt 0:03:58] [#]} Nd3 {[%emt 0:01:21]} 20. Qxd3 {[%emt 0:01:22] aiming for Qb1.} Nc5 {[%emt 0:00:02]} 21. Qe2 {[%emt 0:00:29] Nxc5 is the strong threat.} Nxe4 {[%emt 0:00:03]} 22. Rfd1 {[%emt 0:00:02]} a6 {[%emt 0:01:54]} 23. Nc3 {[%emt 0:00:48]} Nxd2 {[%emt 0:00:17]} 24. Rxd2 {[%emt 0:00:01]} h5 {[%emt 0:01:17]} 25. h3 {[%emt 0:00:10]} b5 {[%emt 0:02:11]} 26. Rad1 {[%emt 0:00:03]} Rxd2 {[%emt 0:01:26]} 27. Qxd2 {[%emt 0:00:30]} b4 {[%emt 0:01:00]} 28. axb4 {[%emt 0:00:02]} Bxb4 {[%emt 0:00:02]} 29. Qd4 {[%emt 0:00:02]} a5 {[%emt 0:00:36]} 30. Ne4 {[%emt 0:00:24]} h4 {[%emt 0:00:47]} 31. Rc1 {[%emt 0:00:50]} Be7 {[%emt 0:00:32]} 32. Qa4 {[%emt 0:02:49]} Rb8 {[%emt 0:00:17]} 33. b3 {[%emt 0:00:27]} Bb4 {[%emt 0:00:37]} 34. Qc6 {[%emt 0:00:01]} Rd8 {[%emt 0:00:20]} 35. Qc7 {[%emt 0:00:29]} Rf8 {[%emt 0:00:12]} 36. Qf4 {[%emt 0:00:20]} Qh5 {[%emt 0:00:01]} 37. Ng5 {[%emt 0:00:24][%cal Be4g5,Bg5f3,Bf3d4,Bd4c6][%mdl 32]} Be7 {[%emt 0:00:15]} 38. Nf3 {[%emt 0:00:08]} Qb5 {[%emt 0:00:07]} 39. Nd4 {[%emt 0:00:06]} ({Much weaker is} 39. Nxh4 Qxb3 40. g3 a4 $17) 39... Qd5 {[%emt 0:00:11]} 40. Nc6 {[%emt 0:00:18]} Bg5 {[%emt 0:00:01]} 41. Qc4 {[%emt 0:00:25]} Qd2 {[%emt 0:00:21]} 42. Qc2 {[%emt 0:00:30]} Qxc2 {[%emt 0:00:08]} (42... Bxe3 $2 43. fxe3 Qxe3+ 44. Kh1 $18) 43. Rxc2 $14 {[%emt 0:02:13][%mdl 4096] Endgame KRB-KRN} Ra8 $1 {[%emt 0:00:08]} 44. Rc5 {[%emt 0:00:00][%csl LRa5,LRg5]} Bd8 {[%emt 0:00:01]} 45. Kf1 {[%emt 0:00:00]} Bb6 {[%emt 0:00:11]} 46. Rb5 {[%emt 0:00:00]} Bc7 {[%emt 0:00:02]} 47. Rb7 {[%emt 0:00:00]} Bd6 {[%emt 0:00:03]} 48. Ra7 {[%emt 0:00:00]} (48. Rd7 $5 {[%cal Rd7d6]} Bc5 49. Nd8 $14) 48... Rc8 {[%emt 0:00:17]} (48... Rxa7 $11 49. Nxa7 Kf8) 49. Nxa5 {[%emt 0:00:00]} ({White should play} 49. Ra6 $1 $14) 49... Rc1+ $11 {[%emt 0:00:01]} 50. Ke2 {[%emt 0:00:00]} Rc2+ {[%emt 0:00:02]} 51. Kf3 {[%emt 0:00:00]} Bb4 {[%emt 0:00:18] With the idea ...Be1.} 52. g3 {[%emt 0:00:37]} Be1 {[%emt 0:00:18]} 53. gxh4 {[%emt 0:00:02]} Rxf2+ {[%emt 0:00:11]} 54. Ke4 {[%emt 0:00:01]} Rb2 {[%emt 0:00:24]} 55. Nc4 {[%emt 0:00:26]} Rxb3 {[%emt 0:00:03]} 56. h5 {[%emt 0:00:26]} Rb4 {[%emt 0:00:22]} 57. Rc7 {[%emt 0:00:04]} Bg3 {[%emt 0:00:09]} 58. Rc8+ {[%emt 0:00:06]} Kh7 {[%emt 0:00:01]} 59. Kf3 {[%emt 0:00:01]} Bh2 {[%emt 0:00:18]} 60. h4 {[%emt 0:00:11]} Rb5 {[%emt 0:00:15]} 61. Kg2 {[%emt 0:00:06]} Bb8 {[%emt 0:00:23]} 62. Rf8 {[%emt 0:00:31]} Rc5 {[%emt 0:00:00]} 63. Nb6 {[%emt 0:00:27]} Ba7 {[%emt 0:00:07]} 64. Nc8 {[%emt 0:00:12]} (64. Nd7 $11 {keeps the balance.} Rxh5 65. Rxf7) 64... Rc7 $1 $17 {[%emt 0:00:03]} 65. Nxa7 {[%emt 0:00:08]} Rxa7 {[%emt 0:00:02] KR-KR} 66. Kg3 {[%emt 0:00:12]} f6 {[%emt 0:00:02]} 67. Re8 {[%emt 0:00:03]} e5 {[%emt 0:00:02]} 68. Rb8 {[%emt 0:00:24]} Ra4 {[%emt 0:00:08]} 69. Rc8 {[%emt 0:00:11] [#]} Re4 $1 {[%emt 0:00:02]} 70. Rc3 {[%emt 0:00:02] [#]} Kh6 {[%emt 0:00:02]} (70... f5 $142 $1 {[%cal Oe4e3] And now ...Rxe3+! would win.} 71. Rc6 Rxe3+ 72. Kf2 Re4) 71. Ra3 $2 {[%emt 0:00:04][%mdl 8192]} (71. Rc8 $17 Kxh5 72. Rh8+ Kg6 73. h5+ Kg5 74. Kf3) 71... Kxh5 $19 {[%emt 0:00:02] Black is clearly winning.} 72. Ra7 {[%emt 0:00:03]} Rg4+ {[%emt 0:00:07]} 73. Kf2 {[%emt 0:00:02]} Kxh4 {[%emt 0:00:03] Weighted Error Value: White=0.06 (flawless) /Black=0.05 (flawless)} 0-1

[Event "CEZ Chess Trophy 2022"]
[Site "Prague"]
[Date "2022.06.02"]
[Round "9.1"]
[White "Navara, David"]
[Black "Narayanan.S.L"]
[Result "1/2-1/2"]
[ECO "A34"]
[WhiteElo "2682"]
[BlackElo "2662"]
[Annotator "TA"]
[PlyCount "95"]
[EventDate "2022.05.31"]
[EventType "match"]
[EventCountry "CZE"]
[SourceTitle "playchess.com"]
[Source "ChessBase"]
[SourceQuality "1"]
[TimeControl "900+10"]

{[%evp 9,95,10,20,24,30,32,18,28,56,64,62,64,67,51,51,47,52,41,48,26,5,13,0,-13,0,0,8,9,27,21,23,18,21,21,21,21,28,14,12,0,0,0,0,0,0,0,0,0,0,0,0,0,0,0,0,0,0,0,0,0,0,0,0,0,0,0,0,0,0,0,0,0,0,0,0,0,0,0,0,0,0,0,0,0,0,0,0,0]} 1. Nf3 {[%emt 0:00:02]} Nf6 {[%emt 0:00:01]} 2. c4 {[%emt 0:00:01]} c5 {[%emt 0:00:01]} 3. Nc3 {[%emt 0:00:04]} Nc6 {[%emt 0:00:02]} 4. e4 {[%emt 0:00:41]} e6 {[%emt 0:00:15]} 5. Be2 {[%emt 0:00:02]} b6 {[%emt 0:00:55]} 6. O-O {[%emt 0:01:42] A34: Symmetrical English: 2 Nc3, lines with ...d5.} Bb7 {[%emt 0:00:03]} 7. d4 {[%emt 0:00:18]} cxd4 {[%emt 0:00:05]} 8. Nxd4 {[%emt 0:00:02]} Be7 {[%emt 0:01:27] [#]} 9. Bf4 $146 {[%emt 0:02:53]} ({Predecessor:} 9. Ndb5 Qb8 10. Be3 O-O 11. f4 d6 12. Bf3 Rd8 13. Qe2 Nd7 14. Rad1 a6 15. Nd4 {0-1 (38) Baeta,M (1895)-Brito,L (2244) Sao Paulo 2019}) 9... Nxd4 {[%emt 0:02:32]} 10. Qxd4 {[%emt 0:00:02]} d6 {[%emt 0:00:02] [#] White must now prevent ...e5.} 11. Qd3 {[%emt 0:00:33] 0x0.001e603ce953dp-1022s more active pieces. The black rooks are badly placed.} O-O {[%emt 0:00:07]} 12. Rfd1 {[%emt 0:00:27]} Qc8 {[%emt 0:02:11]} 13. Qe3 {[%emt 0:03:05]} Rd8 {[%emt 0:00:07]} 14. Rd2 {[%emt 0:01:02]} Qc5 {[%emt 0:00:52]} 15. Qxc5 {[%emt 0:00:36]} (15. Qf3 {feels hotter.} a6 16. Re1 b5 17. cxb5 axb5 18. Bxb5 d5 19. exd5 Bxd5 20. Nxd5 Nxd5 21. a4) 15... dxc5 {[%emt 0:00:01]} 16. Rad1 {[%emt 0:00:04] [#] And now e5 would win.} Rxd2 {[%emt 0:01:56]} (16... Nxe4 $2 17. Rd7 $18) (16... Bxe4 {seems wilder.} 17. Nxe4 Nxe4 18. Rd7 Kf8) 17. Rxd2 {[%emt 0:00:02] aiming for e5.} Bc6 {[%emt 0:01:47]} (17... Nxe4 $2 18. Rd7 $18) 18. e5 {[%emt 0:00:28]} Ne8 {[%emt 0:00:01]} 19. Bd3 {[%emt 0:02:10]} Rd8 {[%emt 0:01:26]} 20. Be4 {[%emt 0:00:02]} Rxd2 {[%emt 0:00:08]} 21. Bxd2 {[%emt 0:00:02]} Bxe4 {[%emt 0:00:03]} 22. Nxe4 $11 {[%emt 0:00:02][%mdl 4096] Endgame KBN-KBN} f5 {[%emt 0:00:04]} 23. exf6 {[%emt 0:00:37]} gxf6 {[%emt 0:00:03] The position is equal.} 24. g4 {[%emt 0:00:11]} f5 {[%emt 0:00:53]} 25. gxf5 {[%emt 0:00:02]} exf5 {[%emt 0:00:02]} 26. Ng3 {[%emt 0:00:02]} Nd6 {[%emt 0:00:01]} 27. b3 {[%emt 0:00:02]} Kf7 {[%emt 0:00:01]} 28. Bf4 {[%emt 0:00:11]} Ke6 {[%emt 0:00:04]} 29. Kg2 {[%emt 0:01:38]} a6 {[%emt 0:00:12]} 30. a4 {[%emt 0:01:05]} Nb7 {[%emt 0:00:28]} 31. Bd2 {[%emt 0:00:02]} Bf6 {[%emt 0:00:29]} 32. Ne2 {[%emt 0:00:29]} Be5 {[%emt 0:00:02]} 33. h4 {[%emt 0:00:43]} Nd8 {[%emt 0:01:50]} 34. Kf3 {[%emt 0:01:09]} Nc6 {[%emt 0:00:01]} 35. h5 {[%emt 0:00:17]} Bd6 {[%emt 0:00:08]} 36. Nf4+ {[%emt 0:00:09]} Kf7 {[%emt 0:01:06]} 37. Bc3 {[%emt 0:00:09]} Be5 {[%emt 0:00:08]} 38. Bxe5 {[%emt 0:00:03]} Nxe5+ {[%emt 0:00:02] KN-KN} 39. Kg3 {[%emt 0:00:05]} Nd7 {[%emt 0:00:47]} 40. Kh4 {[%emt 0:00:24] Strongly threatening Kg5.} h6 {[%emt 0:00:07]} 41. Nd5 {[%emt 0:00:04]} Ke6 {[%emt 0:00:08]} 42. Kg3 {[%emt 0:00:12]} Ke5 {[%emt 0:00:04]} 43. Kf3 {[%emt 0:00:03]} b5 {[%emt 0:00:11]} 44. Ke3 {[%emt 0:00:13]} bxc4 {[%emt 0:00:06]} 45. bxc4 {[%emt 0:00:02]} Nf6 {[%emt 0:00:21]} 46. f4+ {[%emt 0:00:20]} Ke6 {[%emt 0:00:01]} 47. Nxf6 {[%emt 0:00:02]} Kxf6 {[%emt 0:00:01]} 48. a5 {[%emt 0:00:01] Weighted Error Value: White=0.03 (flawless) /Black=0.03 (flawless)} 1/2-1/2